{"text_format":"1","workbook":"xlsx","n_sheets":3,"sheets":["Tabelle1","Tabelle2","Tabelle3"],"not_rendered":{"charts":0,"images":2,"macros":1,"external_links":0,"defined_names":0,"comments":1,"pivot_tables":0},"unopened":[],"bounds":{"document_bytes":16777216,"sheet_cells":100000,"rows_first":2000,"rows_last":500,"rows_between":2000,"halvings":0,"cell_chars":16384,"cell_head_chars":4096},"cells_cut":0,"cells_raw":0,"read":"whole","date_system":"1900"}

{"sheet":"Tabelle1","index":0,"n_rows":61,"n_cols":11,"rows_kept":61,"cut":false,"hidden":false,"merged":[[53,9,53,12],[38,5,39,7],[51,5,52,7],[37,9,48,10],[46,1,47,1],[44,1,45,1],[60,3,60,4],[44,2,45,2],[46,2,47,2],[44,3,44,4],[16,1,17,1],[41,3,41,4],[42,3,42,4],[54,3,54,4],[55,3,55,4],[57,3,57,4],[58,3,58,4],[59,3,59,4],[34,5,35,5],[19,6,19,7],[46,3,46,4],[47,3,47,4],[16,2,17,2],[12,3,12,4],[13,3,13,4],[14,3,14,4],[15,3,15,4],[19,4,19,5],[2,1,2,2],[2,9,2,10],[43,6,48,7],[56,6,61,7],[1,9,1,10],[16,3,16,4],[17,3,17,4],[9,3,9,4],[10,3,10,4],[4,3,4,4],[5,3,5,4],[6,3,6,4],[7,3,7,4],[8,3,8,4],[4,5,4,6],[45,3,45,4]]}
[]
[null,"Maschinenstundensatzrechnung",null,null,null,"Legende","Eingabefeld","berechnetes Feld",null,"Kostenträgerrechnung"]
[null,"(eine Fertigungsmaschine)"]
[null,null,null,null,null,"Jahreswerte","Monatswerte ","Fixkostenanteil ",null,"Fertiungsmaterial",500]
[null,null,null,"maschinenabhängige Kosten",null,"(alternative Eingabe)",null,"in Prozent",null,"Materialgemeinkostenzuschlagssatz in %",12]
[null,"Maschinenanschaffungswert (€)",640000,"Engergiegrundgebühr",null,null,null,100,null,"Fertigungsstunden",5]
[null,"Nutzungsdauer (Jahre)",12,"Platzkosten je m2",null,120,null,100,null,"Lohnsatz je Stunde",22.5]
[null,"Wiederbeschaffunswert (€)",680000,"Wartungskosten",null,68000,null,60,null,"Verwaltungsgemeinkostenzuschlagssatz in %",10]
[null,"Maschinenleistung (kW)",50,"Werkzeugkosten ",null,56000,null,80,null,"Vertriebsgemeinkostenzuschlagssatz in %",12]
[null,"Kalkulatorischer Zinssatz (%)",4,"Betriebsstoffkosten ",null,null,null,100,null,"Gewinnzuschlag in %",5]
[null,"Energiepreis (€/kW)",0.1,"sonst. maschinenabhängige Kosten",null,null,null,100,null,"Kundenskonto in %",3]
[null,"Platzbedarf (m2)",40,null,null,null,null,null,null,"Kundenrabatt in %",10]
[null,"jährliche Laufstunden",1920,"lohnabhängige Kosten"]
[null,"(alternativ) monatliche Laufstunden",null,"Fertigungslöhne ",null,360000,null,null,null,"Fertigungsmaterial",{"$f":"$K$4","v":500}]
[null,null,null,"Hilfslöhne",null,120000,null,null,null,"Materialgemeinkosten",{"$f":"$K$14*$K$5/100","v":60}]
[null,"Beschäftigungsrückgang in %",0,"Soziale Abgaben",null,56000,null,null,null,"Materialkosten",{"$f":"K14+K15","v":560}]
[null,"Verzicht auf Fixkostendeckung ",0,"sonstige lohnabhängige Kosten ",null,null,600,null,null,"Fertigungslöhne",{"$f":"$K$6*$K$7","v":112.5}]
[null,null,null,"lohnabhängige Gemeinkosten",null,{"$f":"SUM(F15:F17)","v":176000},{"$f":"SUM(G15:G17)","v":600},null,null,"maschinenabhängige Fertiungsgemeinkosten",{"$f":"K32*$K$6","v":541.31944444444446}]
[null,null,null,null,null,null,null,null,null,"Restgemeinkosten",{"$f":"$K$17*$C$36","v":57.249999999999993}]
[null,null,null,null,"Fixkostenanteil",null,"variabler Kostenanteil",null,null,"Fertigungskosten",{"$f":"K17+K18+K19","v":711.06944444444446}]
[null,"Maschinenabhängige Fertigungskosten","Jahreswerte","Monatswerte","Jahreswerte","Monatswerte","Jahreswerte","Monatswerte",null,"Herstellkosten",{"$f":"K16+K20","v":1271.0694444444443}]
[null,"Kalkulatorische Abschreibung",{"$f":"C8/C7","v":56666.666666666664},{"$f":"C22/12","v":4722.2222222222217},{"$f":"C22","v":56666.666666666664},{"$f":"D22","v":4722.2222222222217},{"$f":"C22-E22","v":0},{"$f":"D22-F22","v":0},null,"Verwaltungsgemeinkosten",{"$f":"$K$21*$K$8/100","v":127.10694444444444}]
[null,"Kalkulatorische Zinsen",{"$f":"(C6*C10/100)/2","v":12800},{"$f":"C23/12","v":1066.6666666666667},{"$f":"C23","v":12800},{"$f":"D23","v":1066.6666666666667},0,0,null,"Vertriebsgemeinkosten",{"$f":"$K$21*$K$9/100","v":152.52833333333331}]
[null,"Energiekosten",{"$f":"IF(C13>0,C9*C13*C11,C9*C14*C11*12)","v":9600},{"$f":"C24/12","v":800},0,0,9600,800,null,"Selbstkosten",{"$f":"K21+K22+K23","v":1550.7047222222222}]
[null,"Grundgebühr für Energiebereitstellung",{"$f":"IF(F6>0,F6,G6*12)","v":0},{"$f":"IF(G6>0,G6,C25/12)","v":0},{"$f":"F6*H6/100","v":0},{"$f":"D25*H6/100","v":0},0,0,null,"Gewinnzuschlag",{"$f":"K24*K10/100","v":77.535236111111118}]
[null,"Platzkosten",{"$f":"IF(F7>0,F7*C12,G7*C12*12)","v":4800},{"$f":"IF(G7>0,G7*C12,C26/12)","v":400},{"$f":"C26*H7/100","v":4800},400,0,0,null,"Barverkaufspreis",{"$f":"K24+K25","v":1628.2399583333333}]
[null,{"$f":"D8","v":"Wartungskosten"},{"$f":"IF(F8>0,F8,G8*12)","v":68000},{"$f":"IF(G8>0,G8,F8/12)","v":5666.666666666667},{"$f":"C27*H8/100","v":40800},3400,27200,2266.666666666667,null,"Kundenskonto",{"$f":"K26*K11/(100-K11)","v":50.357936855670104}]
[null,{"$f":"D9","v":"Werkzeugkosten "},{"$f":"IF(F9>0,F9,G9*12)","v":56000},{"$f":"IF(G9>0,G9,F9/12)","v":4666.666666666667},{"$f":"C28*H9/100","v":44800},3733.3333333333339,11200,933.33333333333303,null,"Zielverkaufspreis",{"$f":"K26+K27","v":1678.5978951890033}]
[null,{"$f":"D10","v":"Betriebsstoffkosten "},{"$f":"IF(F10>0,F10,G10*12)","v":0},{"$f":"IF(G10>0,G10,F10/12)","v":0},{"$f":"C29*H10/100","v":0},0,0,0,null,"Kundenrabatt",{"$f":"K28*K12/(100-K12)","v":186.51087724322258}]
[null,{"$f":"D11","v":"sonst. maschinenabhängige Kosten"},{"$f":"IF(F11>0,F11,G11*12)","v":0},{"$f":"IF(G11>0,G11,F11/12)","v":0},{"$f":"C30*H11/100","v":0},0,0,0,null,"Nettoverkaufspreis",{"$f":"K28+K29","v":1865.108772432226}]
[null,"Gesamtkosten",{"$f":"SUM(C22:C30)","v":207866.66666666666},17322.222222222223,159866.66666666666,13322.222222222223,48000,4000]
[null,null,null,null,null,null,null,null,null,"Maschinenstundensatz",{"$f":"IF(AND(C16=0,C17=0),C33,H43+H56)","v":108.26388888888889}]
[null,"Maschinenstundensatz",{"$f":"IF($C$13>0,C31/$C$13,(D31/$C$14))","v":108.26388888888889},{"$f":"IF($C$14>0,D31/$C$14,(C31/$C$13))","v":108.26388888888889},{"$f":"IF($C$13>0,E31/$C$13,(F31/$C$14))","v":83.263888888888886},{"$f":"IF($C$14>0,F31/$C$14,(E31/$C$13))","v":83.263888888888886},{"$f":"IF($C$13>0,G31/$C$13,(H31/$C$14))","v":25},{"$f":"IF($C$14>0,H31/$C$14,(G31/$C$13))","v":25},null,"Verzicht auf Fixkostendeckung",{"$f":"C17","v":0}]
[]
[null,"Restgemeinkosten",{"$f":"F18+(G18*12)","v":183200},{"$f":"G18+(F18/12)","v":15266.666666666666},null,"Maschinen- platzkosten","Jahreswerte","Monatswerte"]
[null,"Restgemeinkostenzuschlagssatz (%)",{"$f":"C35/(F14+(G14*12))","v":0.50888888888888884},{"$f":"D35/(G14+(F14/12))","v":0.50888888888888884},null,null,{"$f":"C35+C31","v":391066.66666666663},{"$f":"D31+D35","v":32588.888888888891}]
[]
[null,null,null,null,null,null,null,null,null,"Mit der Zielwertsuche von Excel kann bei einem Beschäftigungsrückgang der Maschinenstundensatz und der damit verbundene Verzicht auf Fixkostendeckung berechnet werden, wenn eine bestimmter Nettoverkaufspreis eingehalten werden soll.                  (Daten - Was-wäre-wenn-Analyse - Zielwertsuche)              Zielzelle: K30                                                                                               Zielwert: einzuhaltender Nettoverkaufspreis                              veränderbare Zelle: C17                                                                          Maschinenstundensatz und Verzicht auf Fixkostendeckung werden dann in Prozent ausgewiesen."]
[null,"Maschinenstundensatz bei Beschäftigungsrückgang ",null,null,null,{"$f":"IF(C16=0,\"trifft nicht zu, kein Beschäftigungsrückgang\",\"veränderter Maschinenstundensatz wegen Beschäftigungsrückgang\")","v":"trifft nicht zu, kein Beschäftigungsrückgang"}]
[null,"(ohne und mit Verzicht auf Deckung der Kosten des Beschäftigungsrückganges)"]
[]
[null,"Beschäftigungsrückgang in %",{"$f":"C16","v":0},"Maschinenstundensatz",null,"fix","variabel","insgesamt"]
[null,"Laufzeitreduzierung",{"$f":"IF(C13>0,C13*(C42/100),(C14*12)*(C42/100))","v":0},"bei Beschäftigungsrückgang",null,{"$f":"IF(C16>0,IF(C13>0,E31/(C13-(C43*(100%-C45))),(F31*12)/((C14*12)-(C43*(100%-C45)))),0)","v":0},{"$f":"IF(C16>0,G33,0)","v":0},{"$f":"F43+G43","v":0}]
[null,"Maschinenlaufzeit bei Reduzierung",{"$f":"IF(C13>0,C13-C43,(C14*12)-C43)","v":1920},null,null,null,"Die ersetzbaren und nicht ersetzbaren fixen Kosten werden vom Anteil des Beschäftigungsrückganges berechnet."]
[null,"Verzicht auf Fixkostendeckung der Laufzeitreduzierung in Prozent",{"$f":"C17","v":0},"Jährlich ersetzbare Fixkosten",null,{"$f":"IF(C16=0,0,IF(C13>0,((E31*C44)/C13)+(E31*(C43*(C47/100)))/C13,(((F31*12)*C44)/(C14*12))+((F31*12)*(C43*(C47/100)))/(C14*12)))","v":0}]
[null,null,null,"Monatlich ersetzbare Fixkosten",null,{"$f":"F45/12","v":0}]
[null,"Fixkostendeckung der Laufzeitreduzierung in Prozent",{"$f":"100-C45","v":100},"Jährlich nicht ersetzbar",null,{"$f":"IF(C16=0,0,E31-F45)","v":0}]
[null,null,null,"Monatlich nicht ersetzbar",null,{"$f":"IF(C16=0,0,F31-F46)","v":0}]
[]
[]
[]
[null,"Maschinenstundensatz  mit Verzicht auf Fixkostendeckung ",null,null,null,{"$f":"IF(C17=0,\"trifft nicht zu, kein Verzicht auf Fixkostendeckung\",\"veränderter Maschinenstundensatz wegen Verzicht auf Fixkostendeckung\")","v":"trifft nicht zu, kein Verzicht auf Fixkostendeckung"}]
[null,"ohne Beschäftigungsrückgang"]
[]
[null,null,null,"Verzicht auf Fixkostendeckung",null,"fix","variabel","insgesamt"]
[null,null,null,"ohne Beschäftigungsrückgang",null,{"$f":"IF(AND(C16=0,C17>0),E33*(C47/100),0)","v":0},{"$f":"IF(C16>0,0,IF(AND(C16=0,C17>0),G33,0))","v":0},{"$f":"F56+G56","v":0}]
[null,null,null,null,null,null,"Der Anteil  der ersetzbaren und nicht ersetzbaren fixen Kosten wird von den gesamten fixen Kosten berechnet."]
[null,null,null,"Jährlich ersetzbare Fixkosten",null,{"$f":"IF(C16=0,(E31*F56)/E33,0)","v":0}]
[null,null,null,"Monatlich ersetzbare Fixkosten",null,{"$f":"F58/12","v":0}]
[null,null,null,"Jährlich nicht ersetzbar",null,{"$f":"IF(AND(C16=0,C17>0),E31-F58,0)","v":0}]
[null,null,null,"Monatlich nicht ersetzbar",null,{"$f":"F60/12","v":0}]

{"sheet":"Tabelle2","index":1,"n_rows":0,"n_cols":0,"rows_kept":0,"cut":false,"hidden":false,"merged":[]}

{"sheet":"Tabelle3","index":2,"n_rows":0,"n_cols":0,"rows_kept":0,"cut":false,"hidden":false,"merged":[]}